[Event "Titled Tuesday Blitz July 25 Early 2023"]
[White "Devaev, Alexander"]
[Black "Xavier_mompel"]
[WhiteFideId "4169395"]
[WhiteElo "2444"]
[BlackElo "2261"]
[Result "1-0"]
[Round "4"]
[TimeControl "180+2"]
[Date "2023.07.25"]
[WhiteClock "0:01:12"]
[BlackClock "0:00:03"]
[Board "189"]

1. d4 {[%clk 0:03:00]}  d5 {[%clk 0:02:59]} 2. c4 {[%clk 0:02:57]}  c6 {[%clk 0:02:59]} 3. Nc3 {[%clk 0:02:56]}  Nf6 {[%clk 0:02:59]} 4. Nf3 {[%clk 0:02:57]}  e6 {[%clk 0:02:59]} 5. e3 {[%clk 0:02:56]}  Nbd7 {[%clk 0:02:58]} 6. Qc2 {[%clk 0:02:57]}  Bd6 {[%clk 0:02:55]} 7. Bd3 {[%clk 0:02:57]}  dxc4 {[%clk 0:02:48]} 8. Bxc4 {[%clk 0:02:57]}  b5 {[%clk 0:02:48]} 9. Bd3 {[%clk 0:02:57]}  Bb7 {[%clk 0:02:43]} 10. O-O {[%clk 0:02:56]}  a6 {[%clk 0:02:39]} 11. e4 {[%clk 0:02:50]}  e5 {[%clk 0:02:38]} 12. dxe5 {[%clk 0:02:50]}  Nxe5 {[%clk 0:02:39]} 13. Nxe5 {[%clk 0:02:51]}  Bxe5 {[%clk 0:02:39]} 14. f4 {[%clk 0:02:51]}  Bd4+ {[%clk 0:02:39]} 15. Kh1 {[%clk 0:02:52]}  Bxc3 {[%clk 0:02:24]} 16. bxc3 {[%clk 0:02:48]}  h6 {[%clk 0:02:13]} 17. Ba3 {[%clk 0:02:47]}  Qb6 {[%clk 0:02:09]} 18. Bd6 {[%clk 0:02:27]}  c5 {[%clk 0:01:48]} 19. e5 {[%clk 0:02:27]}  Nd5 {[%clk 0:01:48]} 20. Rae1 {[%clk 0:02:26]}  Ne7 {[%clk 0:01:17]} 21. f5 {[%clk 0:02:18]}  Qc6 {[%clk 0:00:46]} 22. Be4 {[%clk 0:02:14]}  Qd7 {[%clk 0:00:46]} 23. Bxb7 {[%clk 0:01:55]}  Qxb7 {[%clk 0:00:47]} 24. f6 {[%clk 0:01:56]}  Nc6 {[%clk 0:00:14]} 25. fxg7 {[%clk 0:01:42]}  Rg8 {[%clk 0:00:14]} 26. e6 {[%clk 0:01:40]}  O-O-O {[%clk 0:00:06]} 27. exf7 {[%clk 0:01:23]}  Rxg7 {[%clk 0:00:03]} 28. f8=Q {[%clk 0:01:19]}  Rxf8 {[%clk 0:00:03]} 29. Bxf8 {[%clk 0:01:12]} 1-0


[Site "https://www.chess.com"]

[Event "Titled Tuesday Blitz July 25 Early 2023"]
[White "Ai, Evan"]
[Black "Gardezi, Arsal"]
[WhiteFideId "2094770"]
[BlackFideId "30949521"]
[WhiteElo "2442"]
[BlackElo "2247"]
[Result "0-1"]
[Round "4"]
[TimeControl "180+2"]
[Date "2023.07.25"]
[WhiteClock "0:00:07"]
[BlackClock "0:00:31"]
[Board "190"]

1. e4 {[%clk 0:03:00]}  e6 {[%clk 0:02:56]} 2. d4 {[%clk 0:02:55]}  d5 {[%clk 0:02:55]} 3. Nd2 {[%clk 0:02:56]}  Nc6 {[%clk 0:02:54]} 4. Ngf3 {[%clk 0:02:55]}  Nf6 {[%clk 0:02:52]} 5. e5 {[%clk 0:02:55]}  Nd7 {[%clk 0:02:52]} 6. c3 {[%clk 0:02:51]}  f6 {[%clk 0:02:53]} 7. exf6 {[%clk 0:02:51]}  Nxf6 {[%clk 0:02:54]} 8. Bb5 {[%clk 0:02:49]}  Bd6 {[%clk 0:02:51]} 9. Qe2 {[%clk 0:02:47]}  O-O {[%clk 0:02:51]} 10. Bxc6 {[%clk 0:02:43]}  bxc6 {[%clk 0:02:51]} 11. Ne5 {[%clk 0:02:44]}  c5 {[%clk 0:02:50]} 12. Ndf3 {[%clk 0:02:35]}  cxd4 {[%clk 0:02:50]} 13. cxd4 {[%clk 0:02:36]}  c5 {[%clk 0:02:50]} 14. O-O {[%clk 0:02:26]}  cxd4 {[%clk 0:02:48]} 15. Nxd4 {[%clk 0:02:27]}  Ne4 {[%clk 0:02:35]} 16. f4 {[%clk 0:02:21]}  Qc7 {[%clk 0:02:28]} 17. Ndf3 {[%clk 0:02:11]}  Bc5+ {[%clk 0:02:12]} 18. Be3 {[%clk 0:02:10]}  Qb6 {[%clk 0:02:08]} 19. Bxc5 {[%clk 0:02:00]}  Qxc5+ {[%clk 0:02:08]} 20. Kh1 {[%clk 0:02:00]}  Rxf4 {[%clk 0:02:08]} 21. Nd3 {[%clk 0:01:58]}  Ba6 {[%clk 0:01:53]} 22. Nfe5 {[%clk 0:01:25]}  Rh4 {[%clk 0:01:10]} 23. Qf3 {[%clk 0:01:12]}  Qe7 {[%clk 0:01:10]} 24. g3 {[%clk 0:00:56]}  Rh6 {[%clk 0:01:00]} 25. Ng4 {[%clk 0:00:33]}  Rg6 {[%clk 0:00:52]} 26. Nde5 {[%clk 0:00:29]}  Rg5 {[%clk 0:00:52]} 27. Rfe1 {[%clk 0:00:12]}  h5 {[%clk 0:00:50]} 28. Rxe4 {[%clk 0:00:08]}  dxe4 {[%clk 0:00:48]} 29. Qxe4 {[%clk 0:00:09]}  Bb7 {[%clk 0:00:46]} 30. Nc6 {[%clk 0:00:08]}  Qd6 {[%clk 0:00:31]} 31. Nge5 {[%clk 0:00:07]}  Rxe5 {[%clk 0:00:31]} 0-1


[Site "https://www.chess.com"]

[Event "Titled Tuesday Blitz July 25 Early 2023"]
[White "Garagulya, Konstantin"]
[Black "Kiseleva, Arina"]
[WhiteFideId "4128931"]
[BlackFideId "4164989"]
[WhiteElo "2442"]
[BlackElo "2212"]
[Result "1-0"]
[Round "4"]
[TimeControl "180+2"]
[Date "2023.07.25"]
[WhiteClock "0:00:07"]
[BlackClock "0:00:01"]
[Board "191"]

1. d4 {[%clk 0:03:00]}  Nf6 {[%clk 0:02:59]} 2. Nf3 {[%clk 0:03:00]}  e6 {[%clk 0:02:59]} 3. Bg5 {[%clk 0:02:59]}  h6 {[%clk 0:02:58]} 4. Bh4 {[%clk 0:02:59]}  c5 {[%clk 0:02:58]} 5. Nbd2 {[%clk 0:02:59]}  cxd4 {[%clk 0:02:55]} 6. Nxd4 {[%clk 0:03:00]}  Nc6 {[%clk 0:02:55]} 7. Nxc6 {[%clk 0:02:57]}  bxc6 {[%clk 0:02:54]} 8. c4 {[%clk 0:02:57]}  d5 {[%clk 0:02:54]} 9. e3 {[%clk 0:02:55]}  Be7 {[%clk 0:02:52]} 10. Qc2 {[%clk 0:02:55]}  O-O {[%clk 0:02:52]} 11. Be2 {[%clk 0:02:55]}  a5 {[%clk 0:02:49]} 12. O-O {[%clk 0:02:56]}  Ba6 {[%clk 0:02:49]} 13. Rfd1 {[%clk 0:02:56]}  Qb6 {[%clk 0:02:47]} 14. e4 {[%clk 0:02:53]}  Rfe8 {[%clk 0:02:33]} 15. Bg3 {[%clk 0:02:35]}  Rac8 {[%clk 0:02:23]} 16. Rac1 {[%clk 0:02:32]}  Qb7 {[%clk 0:02:10]} 17. h3 {[%clk 0:02:30]}  Red8 {[%clk 0:01:52]} 18. Bf3 {[%clk 0:02:29]}  Qb6 {[%clk 0:01:34]} 19. Rb1 {[%clk 0:01:50]}  d4 {[%clk 0:01:29]} 20. e5 {[%clk 0:01:50]}  Nd7 {[%clk 0:01:19]} 21. Ne4 {[%clk 0:01:50]}  c5 {[%clk 0:01:16]} 22. Rd3 {[%clk 0:01:42]}  Qc7 {[%clk 0:01:09]} 23. Ra3 {[%clk 0:01:36]}  Nxe5 {[%clk 0:01:01]} 24. Bxe5 {[%clk 0:01:31]}  Qxe5 {[%clk 0:01:00]} 25. Rxa5 {[%clk 0:01:32]}  d3 {[%clk 0:00:56]} 26. Qb3 {[%clk 0:01:20]}  Ra8 {[%clk 0:00:41]} 27. Rd1 {[%clk 0:01:10]}  Bxc4 {[%clk 0:00:35]} 28. Qa4 {[%clk 0:00:49]}  Rxa5 {[%clk 0:00:33]} 29. Qxa5 {[%clk 0:00:50]}  Bd5 {[%clk 0:00:28]} 30. Nd2 {[%clk 0:00:45]}  Bxf3 {[%clk 0:00:23]} 31. Nxf3 {[%clk 0:00:46]}  Qd5 {[%clk 0:00:23]} 32. b3 {[%clk 0:00:43]}  e5 {[%clk 0:00:22]} 33. Nd2 {[%clk 0:00:35]}  e4 {[%clk 0:00:20]} 34. Qa4 {[%clk 0:00:28]}  f5 {[%clk 0:00:20]} 35. Qc4 {[%clk 0:00:21]}  Qxc4 {[%clk 0:00:19]} 36. Nxc4 {[%clk 0:00:22]}  Ra8 {[%clk 0:00:15]} 37. a4 {[%clk 0:00:21]}  Rb8 {[%clk 0:00:15]} 38. Rb1 {[%clk 0:00:21]}  Bg5 {[%clk 0:00:13]} 39. Kf1 {[%clk 0:00:19]}  Kf7 {[%clk 0:00:12]} 40. a5 {[%clk 0:00:19]}  Ke6 {[%clk 0:00:12]} 41. a6 {[%clk 0:00:20]}  Ra8 {[%clk 0:00:12]} 42. Ra1 {[%clk 0:00:19]}  Ra7 {[%clk 0:00:12]} 43. Ke1 {[%clk 0:00:16]}  Kd5 {[%clk 0:00:11]} 44. Nb6+ {[%clk 0:00:16]}  Kd4 {[%clk 0:00:11]} 45. Nc8 {[%clk 0:00:17]}  Ra8 {[%clk 0:00:10]} 46. Nb6 {[%clk 0:00:16]}  Ra7 {[%clk 0:00:10]} 47. Nc8 {[%clk 0:00:16]}  Ra8 {[%clk 0:00:10]} 48. a7 {[%clk 0:00:17]}  Rxc8 {[%clk 0:00:09]} 49. a8=Q {[%clk 0:00:17]}  Rxa8 {[%clk 0:00:09]} 50. Rxa8 {[%clk 0:00:18]}  Kc3 {[%clk 0:00:09]} 51. Rc8 {[%clk 0:00:16]}  d2+ {[%clk 0:00:06]} 52. Kd1 {[%clk 0:00:16]}  Kb4 {[%clk 0:00:05]} 53. Rf8 {[%clk 0:00:14]}  g6 {[%clk 0:00:03]} 54. Rb8+ {[%clk 0:00:14]}  Kc3 {[%clk 0:00:03]} 55. Rb6 {[%clk 0:00:14]}  c4 {[%clk 0:00:01]} 56. bxc4 {[%clk 0:00:14]}  Kxc4 {[%clk 0:00:01]} 57. Rxg6 {[%clk 0:00:14]}  e3 {[%clk 0:00:01]} 58. fxe3 {[%clk 0:00:12]}  Bxe3 {[%clk 0:00:02]} 59. Re6 {[%clk 0:00:10]}  Kd4 {[%clk 0:00:02]} 60. Rf6 {[%clk 0:00:09]}  Ke4 {[%clk 0:00:02]} 61. Ke2 {[%clk 0:00:10]}  Bf4 {[%clk 0:00:01]} 62. Re6+ {[%clk 0:00:09]}  Kd5 {[%clk 0:00:01]} 63. Re8 {[%clk 0:00:10]}  Bg5 {[%clk 0:00:01]} 64. g3 {[%clk 0:00:07]}  Kd4 {[%clk 0:00:01]} 65. h4 {[%clk 0:00:07]} 1-0


[Site "https://www.chess.com"]

[Event "Titled Tuesday Blitz July 25 Early 2023"]
[White "Novikov, Evgenij"]
[Black "Tqebuchava, Zurab"]
[WhiteFideId "4125380"]
[BlackFideId "13601113"]
[WhiteElo "2442"]
[BlackElo "2211"]
[Result "1-0"]
[Round "4"]
[TimeControl "180+2"]
[Date "2023.07.25"]
[WhiteClock "0:00:17"]
[BlackClock "0:00:02"]
[Board "192"]

1. d4 {[%clk 0:03:00]}  d6 {[%clk 0:02:58]} 2. Nf3 {[%clk 0:02:57]}  g6 {[%clk 0:02:58]} 3. e4 {[%clk 0:02:55]}  Bg7 {[%clk 0:02:59]} 4. c4 {[%clk 0:02:55]}  c6 {[%clk 0:03:00]} 5. Nc3 {[%clk 0:02:55]}  Bg4 {[%clk 0:02:59]} 6. Be2 {[%clk 0:02:49]}  Bxf3 {[%clk 0:02:52]} 7. Bxf3 {[%clk 0:02:48]}  Qb6 {[%clk 0:02:53]} 8. d5 {[%clk 0:02:39]}  Nf6 {[%clk 0:02:49]} 9. O-O {[%clk 0:02:37]}  O-O {[%clk 0:02:48]} 10. Qe2 {[%clk 0:02:32]}  Nbd7 {[%clk 0:02:45]} 11. Be3 {[%clk 0:02:29]}  Qc7 {[%clk 0:02:42]} 12. Rac1 {[%clk 0:02:07]}  Ne5 {[%clk 0:02:38]} 13. Rc2 {[%clk 0:01:57]}  Nfd7 {[%clk 0:02:32]} 14. Rfc1 {[%clk 0:01:54]}  c5 {[%clk 0:02:19]} 15. Bg5 {[%clk 0:01:44]}  Rfe8 {[%clk 0:01:58]} 16. Bg4 {[%clk 0:01:29]}  Nxg4 {[%clk 0:01:54]} 17. Qxg4 {[%clk 0:01:30]}  Ne5 {[%clk 0:01:53]} 18. Qe2 {[%clk 0:01:30]}  h6 {[%clk 0:01:50]} 19. Bh4 {[%clk 0:01:25]}  Bf6 {[%clk 0:01:36]} 20. Bg3 {[%clk 0:01:21]}  Nd7 {[%clk 0:01:28]} 21. Qe3 {[%clk 0:01:16]}  Kg7 {[%clk 0:01:23]} 22. Ne2 {[%clk 0:01:15]}  a6 {[%clk 0:01:16]} 23. h4 {[%clk 0:01:09]}  b5 {[%clk 0:01:13]} 24. b3 {[%clk 0:01:05]}  bxc4 {[%clk 0:01:11]} 25. bxc4 {[%clk 0:01:06]}  Rab8 {[%clk 0:01:09]} 26. h5 {[%clk 0:01:04]}  g5 {[%clk 0:01:05]} 27. f4 {[%clk 0:00:57]}  Rb2 {[%clk 0:00:46]} 28. Rxb2 {[%clk 0:00:53]}  Bxb2 {[%clk 0:00:45]} 29. Rf1 {[%clk 0:00:44]}  Bf6 {[%clk 0:00:45]} 30. Be1 {[%clk 0:00:34]}  gxf4 {[%clk 0:00:41]} 31. Rxf4 {[%clk 0:00:30]}  Bg5 {[%clk 0:00:38]} 32. Rg4 {[%clk 0:00:30]}  Kh7 {[%clk 0:00:28]} 33. Rxg5 {[%clk 0:00:27]}  hxg5 {[%clk 0:00:28]} 34. Qxg5 {[%clk 0:00:28]}  Ne5 {[%clk 0:00:19]} 35. Ng3 {[%clk 0:00:23]}  Rg8 {[%clk 0:00:15]} 36. Qf5+ {[%clk 0:00:23]}  Kh8 {[%clk 0:00:16]} 37. Qf4 {[%clk 0:00:23]}  Kg7 {[%clk 0:00:06]} 38. Nf5+ {[%clk 0:00:18]}  Kf8 {[%clk 0:00:07]} 39. h6 {[%clk 0:00:19]}  Qd7 {[%clk 0:00:05]} 40. Bh4 {[%clk 0:00:18]}  Qb7 {[%clk 0:00:03]} 41. Bxe7+ {[%clk 0:00:17]}  Ke8 {[%clk 0:00:02]} 42. Nxd6+ {[%clk 0:00:17]}  Kxe7 {[%clk 0:00:02]} 43. Nxb7 {[%clk 0:00:17]} 1-0


[Site "https://www.chess.com"]

[Event "Titled Tuesday Blitz July 25 Early 2023"]
[White "Smietanska, Wiktoria"]
[Black "Zheenbekov, Nurgazy"]
[WhiteFideId "21869359"]
[BlackFideId "13800485"]
[WhiteElo "2209"]
[BlackElo "2441"]
[Result "1-0"]
[Round "4"]
[TimeControl "180+2"]
[Date "2023.07.25"]
[WhiteClock "0:00:06"]
[BlackClock "0:00:14"]
[Board "193"]

1. c4 {[%clk 0:03:00]}  e5 {[%clk 0:02:59]} 2. Nc3 {[%clk 0:03:00]}  Nf6 {[%clk 0:02:59]} 3. Nf3 {[%clk 0:03:00]}  Nc6 {[%clk 0:02:59]} 4. e4 {[%clk 0:03:00]}  Bc5 {[%clk 0:02:56]} 5. Nxe5 {[%clk 0:03:00]}  Nxe5 {[%clk 0:02:56]} 6. d4 {[%clk 0:03:00]}  Bxd4 {[%clk 0:02:56]} 7. Qxd4 {[%clk 0:02:59]}  d6 {[%clk 0:02:56]} 8. Bg5 {[%clk 0:02:53]}  h6 {[%clk 0:02:56]} 9. Bh4 {[%clk 0:02:52]}  Be6 {[%clk 0:02:45]} 10. O-O-O {[%clk 0:02:39]}  g5 {[%clk 0:02:40]} 11. Bg3 {[%clk 0:02:38]}  Nc6 {[%clk 0:02:40]} 12. Qd2 {[%clk 0:02:34]}  Qe7 {[%clk 0:02:29]} 13. f3 {[%clk 0:02:16]}  O-O-O {[%clk 0:02:27]} 14. Nd5 {[%clk 0:02:09]}  Bxd5 {[%clk 0:02:27]} 15. cxd5 {[%clk 0:02:06]}  Ne5 {[%clk 0:02:26]} 16. Qa5 {[%clk 0:02:04]}  Kb8 {[%clk 0:02:26]} 17. Bf2 {[%clk 0:01:47]}  b6 {[%clk 0:02:13]} 18. Qa6 {[%clk 0:01:46]}  Qd7 {[%clk 0:01:53]} 19. Bb5 {[%clk 0:01:43]}  Qc8 {[%clk 0:01:53]} 20. Qa4 {[%clk 0:01:40]}  a5 {[%clk 0:01:49]} 21. b4 {[%clk 0:01:22]}  axb4 {[%clk 0:01:48]} 22. Qxb4 {[%clk 0:01:19]}  Qb7 {[%clk 0:01:46]} 23. Kb1 {[%clk 0:01:10]}  Nfd7 {[%clk 0:01:43]} 24. Bd4 {[%clk 0:00:57]}  Nc5 {[%clk 0:01:41]} 25. Qb2 {[%clk 0:00:53]}  f6 {[%clk 0:01:38]} 26. Ka1 {[%clk 0:00:45]}  Ka7 {[%clk 0:01:24]} 27. Bxc5 {[%clk 0:00:38]}  dxc5 {[%clk 0:01:16]} 28. Qa3+ {[%clk 0:00:38]}  Kb8 {[%clk 0:01:16]} 29. g3 {[%clk 0:00:19]}  Qa7 {[%clk 0:01:11]} 30. Qc3 {[%clk 0:00:16]}  Nf7 {[%clk 0:00:40]} 31. Qxf6 {[%clk 0:00:14]}  Nd6 {[%clk 0:00:40]} 32. Bc6 {[%clk 0:00:12]}  Rhf8 {[%clk 0:00:39]} 33. Qc3 {[%clk 0:00:11]}  b5 {[%clk 0:00:24]} 34. Rb1 {[%clk 0:00:08]}  b4 {[%clk 0:00:24]} 35. Qe3 {[%clk 0:00:06]}  Qb6 {[%clk 0:00:16]} 36. Rhc1 {[%clk 0:00:05]}  Kc8 {[%clk 0:00:16]} 37. Qxc5 {[%clk 0:00:06]}  Qxc5 {[%clk 0:00:15]} 38. Rxc5 {[%clk 0:00:06]}  Rf4 {[%clk 0:00:15]} 39. gxf4 {[%clk 0:00:06]}  gxf4 {[%clk 0:00:14]} 40. Ra5 {[%clk 0:00:06]} 1-0


[Site "https://www.chess.com"]

[Event "Titled Tuesday Blitz July 25 Early 2023"]
[White "Sanudula, K M Dahamdi"]
[Black "Reprintsev, Alexander"]
[WhiteFideId "9932470"]
[BlackFideId "14100541"]
[WhiteElo "2181"]
[BlackElo "2440"]
[Result "0-1"]
[Round "4"]
[TimeControl "180+2"]
[Date "2023.07.25"]
[WhiteClock "0:00:14"]
[BlackClock "0:00:19"]
[Board "194"]

1. d4 {[%clk 0:03:00]}  d5 {[%clk 0:02:48]} 2. e3 {[%clk 0:03:01]}  Nf6 {[%clk 0:02:44]} 3. Bd3 {[%clk 0:03:01]}  Bg4 {[%clk 0:02:44]} 4. f3 {[%clk 0:03:00]}  Bd7 {[%clk 0:02:43]} 5. Nd2 {[%clk 0:02:58]}  c5 {[%clk 0:02:41]} 6. c3 {[%clk 0:02:58]}  Qb6 {[%clk 0:02:39]} 7. h3 {[%clk 0:02:50]}  g6 {[%clk 0:02:38]} 8. f4 {[%clk 0:02:50]}  Bg7 {[%clk 0:02:38]} 9. Ngf3 {[%clk 0:02:51]}  O-O {[%clk 0:02:37]} 10. O-O {[%clk 0:02:51]}  Nc6 {[%clk 0:02:25]} 11. Ne5 {[%clk 0:02:48]}  Rad8 {[%clk 0:02:21]} 12. g4 {[%clk 0:02:44]}  Bc8 {[%clk 0:02:21]} 13. Qe2 {[%clk 0:02:41]}  Nd7 {[%clk 0:02:20]} 14. Qf3 {[%clk 0:02:33]}  cxd4 {[%clk 0:02:12]} 15. cxd4 {[%clk 0:02:28]}  Ndxe5 {[%clk 0:02:06]} 16. fxe5 {[%clk 0:02:27]}  Nb4 {[%clk 0:02:01]} 17. Be2 {[%clk 0:02:20]}  f6 {[%clk 0:02:00]} 18. exf6 {[%clk 0:02:14]}  Rxf6 {[%clk 0:01:59]} 19. Qg3 {[%clk 0:02:12]}  Nc2 {[%clk 0:01:48]} 20. Rb1 {[%clk 0:02:11]}  Rxf1+ {[%clk 0:01:41]} 21. Nxf1 {[%clk 0:02:11]}  Na3 {[%clk 0:01:39]} 22. Ra1 {[%clk 0:02:08]}  Nc4 {[%clk 0:01:33]} 23. b3 {[%clk 0:02:03]}  Nd6 {[%clk 0:01:32]} 24. Qg2 {[%clk 0:01:59]}  Be6 {[%clk 0:01:29]} 25. Bf3 {[%clk 0:01:57]}  Nf7 {[%clk 0:01:24]} 26. Ba3 {[%clk 0:01:56]}  Bf8 {[%clk 0:01:05]} 27. Rc1 {[%clk 0:01:54]}  Ng5 {[%clk 0:01:02]} 28. Bc5 {[%clk 0:01:47]}  Qa6 {[%clk 0:01:00]} 29. a4 {[%clk 0:01:33]}  b6 {[%clk 0:01:00]} 30. Bb4 {[%clk 0:01:31]}  Nxf3+ {[%clk 0:00:56]} 31. Qxf3 {[%clk 0:01:31]}  Qd3 {[%clk 0:00:56]} 32. Rc3 {[%clk 0:01:27]}  Qb1 {[%clk 0:00:55]} 33. Kg2 {[%clk 0:01:26]}  a5 {[%clk 0:00:48]} 34. Nd2 {[%clk 0:01:08]}  Qb2 {[%clk 0:00:40]} 35. Qd1 {[%clk 0:01:06]}  axb4 {[%clk 0:00:38]} 36. Rc2 {[%clk 0:01:06]}  Qa3 {[%clk 0:00:35]} 37. Qb1 {[%clk 0:00:25]}  Rc8 {[%clk 0:00:28]} 38. Rb2 {[%clk 0:00:25]}  Rc3 {[%clk 0:00:26]} 39. Kf2 {[%clk 0:00:21]}  Bh6 {[%clk 0:00:25]} 40. Nf1 {[%clk 0:00:20]}  b5 {[%clk 0:00:23]} 41. h4 {[%clk 0:00:15]}  bxa4 {[%clk 0:00:22]} 42. bxa4 {[%clk 0:00:15]}  Bxg4 {[%clk 0:00:20]} 43. Rxb4 {[%clk 0:00:15]}  Bxe3+ {[%clk 0:00:18]} 44. Nxe3 {[%clk 0:00:14]}  Rxe3 {[%clk 0:00:18]} 45. Rb8+ {[%clk 0:00:14]}  Kg7 {[%clk 0:00:19]} 46. Qc1 {[%clk 0:00:14]}  Rf3+ {[%clk 0:00:18]} 47. Kg2 {[%clk 0:00:13]}  Rg3+ {[%clk 0:00:19]} 48. Kh1 {[%clk 0:00:12]}  Rh3+ {[%clk 0:00:19]} 49. Kg1 {[%clk 0:00:13]}  Qg3+ {[%clk 0:00:19]} 50. Kf1 {[%clk 0:00:14]}  Rh1# {[%clk 0:00:19]} 0-1


[Site "https://www.chess.com"]

[Event "Titled Tuesday Blitz July 25 Early 2023"]
[White "coquitovich"]
[Black "Bendayan Claros, Aaron"]
[BlackFideId "3803392"]
[WhiteElo "2178"]
[BlackElo "2437"]
[Result "0-1"]
[Round "4"]
[TimeControl "180+2"]
[Date "2023.07.25"]
[WhiteClock "0:01:06"]
[BlackClock "0:01:00"]
[Board "195"]

1. Nf3 {[%clk 0:02:50]}  d5 {[%clk 0:02:58]} 2. g3 {[%clk 0:02:50]}  Bg4 {[%clk 0:02:58]} 3. Bg2 {[%clk 0:02:51]}  Nd7 {[%clk 0:02:58]} 4. h3 {[%clk 0:02:51]}  Bh5 {[%clk 0:02:58]} 5. d3 {[%clk 0:02:51]}  e5 {[%clk 0:02:57]} 6. Nbd2 {[%clk 0:02:48]}  Ngf6 {[%clk 0:02:56]} 7. e4 {[%clk 0:02:48]}  c6 {[%clk 0:02:56]} 8. O-O {[%clk 0:02:48]}  dxe4 {[%clk 0:02:55]} 9. dxe4 {[%clk 0:02:46]}  Bc5 {[%clk 0:02:55]} 10. Qe2 {[%clk 0:02:41]}  O-O {[%clk 0:02:55]} 11. Nc4 {[%clk 0:02:36]}  Qc7 {[%clk 0:02:53]} 12. a4 {[%clk 0:02:35]}  a5 {[%clk 0:02:51]} 13. Re1 {[%clk 0:02:20]}  Rfe8 {[%clk 0:02:51]} 14. c3 {[%clk 0:02:13]}  Bg6 {[%clk 0:02:45]} 15. Nh4 {[%clk 0:02:11]}  Nb6 {[%clk 0:02:27]} 16. Bg5 {[%clk 0:02:10]}  Nxc4 {[%clk 0:02:24]} 17. Qxc4 {[%clk 0:02:10]}  Qb6 {[%clk 0:02:21]} 18. Qe2 {[%clk 0:02:07]}  Rad8 {[%clk 0:02:19]} 19. Bxf6 {[%clk 0:02:05]}  gxf6 {[%clk 0:02:19]} 20. Nf5 {[%clk 0:02:05]}  Rd7 {[%clk 0:02:11]} 21. b4 {[%clk 0:01:29]}  axb4 {[%clk 0:02:07]} 22. cxb4 {[%clk 0:01:30]}  Bxb4 {[%clk 0:02:06]} 23. Reb1 {[%clk 0:01:29]}  Qa5 {[%clk 0:02:01]} 24. Qg4 {[%clk 0:01:28]}  Red8 {[%clk 0:01:47]} 25. h4 {[%clk 0:01:13]}  h5 {[%clk 0:01:38]} 26. Qf3 {[%clk 0:01:13]}  Bf8 {[%clk 0:01:27]} 27. g4 {[%clk 0:01:11]}  Rd3 {[%clk 0:01:22]} 28. Ne3 {[%clk 0:01:09]}  Bg7 {[%clk 0:01:05]} 29. gxh5 {[%clk 0:01:09]}  Bh7 {[%clk 0:01:06]} 30. h6 {[%clk 0:01:09]}  Bxh6 {[%clk 0:01:05]} 31. Qxf6 {[%clk 0:01:10]}  Bxe3 {[%clk 0:01:01]} 32. fxe3 {[%clk 0:01:10]}  R8d6 {[%clk 0:01:00]} 33. Qxe5 {[%clk 0:01:06]}  Qxe5 {[%clk 0:01:00]} 0-1


[Site "https://www.chess.com"]

[Event "Titled Tuesday Blitz July 25 Early 2023"]
[White "Mishra, Manoj"]
[Black "Goldin, Roman"]
[WhiteFideId "5006007"]
[BlackFideId "2803860"]
[WhiteElo "2173"]
[BlackElo "2437"]
[Result "1-0"]
[Round "4"]
[TimeControl "180+2"]
[Date "2023.07.25"]
[WhiteClock "0:01:18"]
[BlackClock "0:01:05"]
[Board "196"]

1. d4 {[%clk 0:02:59]}  Nf6 {[%clk 0:03:00]} 2. Bg5 {[%clk 0:02:56]}  d5 {[%clk 0:02:58]} 3. e3 {[%clk 0:02:55]}  e6 {[%clk 0:02:57]} 4. Bd3 {[%clk 0:02:54]}  c5 {[%clk 0:02:57]} 5. c3 {[%clk 0:02:54]}  Nbd7 {[%clk 0:02:56]} 6. f4 {[%clk 0:02:53]}  Be7 {[%clk 0:02:55]} 7. Nd2 {[%clk 0:02:52]}  b6 {[%clk 0:02:55]} 8. Ngf3 {[%clk 0:02:50]}  Bb7 {[%clk 0:02:55]} 9. Bxf6 {[%clk 0:02:47]}  Nxf6 {[%clk 0:02:52]} 10. Bb5+ {[%clk 0:02:47]}  Kf8 {[%clk 0:02:50]} 11. O-O {[%clk 0:02:46]}  Rc8 {[%clk 0:02:47]} 12. Ne5 {[%clk 0:02:45]}  Ne4 {[%clk 0:02:45]} 13. Nxe4 {[%clk 0:02:43]}  dxe4 {[%clk 0:02:45]} 14. f5 {[%clk 0:02:41]}  exf5 {[%clk 0:02:41]} 15. Rxf5 {[%clk 0:02:31]}  f6 {[%clk 0:02:41]} 16. Qh5 {[%clk 0:02:27]}  g6 {[%clk 0:02:11]} 17. Nxg6+ {[%clk 0:02:24]}  Kg7 {[%clk 0:02:07]} 18. Nxe7 {[%clk 0:01:40]}  Qxe7 {[%clk 0:02:05]} 19. Qg4+ {[%clk 0:01:40]}  Kf7 {[%clk 0:01:46]} 20. Raf1 {[%clk 0:01:26]}  Rc6 {[%clk 0:01:05]} 21. Bxc6 {[%clk 0:01:23]}  Bxc6 {[%clk 0:01:05]} 22. Rxf6+ {[%clk 0:01:23]}  Qxf6 {[%clk 0:01:05]} 23. Rxf6+ {[%clk 0:01:23]}  Kxf6 {[%clk 0:01:05]} 24. Qf4+ {[%clk 0:01:18]} 1-0


[Site "https://www.chess.com"]

[Event "Titled Tuesday Blitz July 25 Early 2023"]
[White "Vivas Zamora, Fabian Ernesto"]
[Black "Cardenas Carbajal, Nilson"]
[WhiteFideId "3902480"]
[BlackFideId "8401128"]
[WhiteElo "2437"]
[BlackElo "2164"]
[Result "1-0"]
[Round "4"]
[TimeControl "180+2"]
[Date "2023.07.25"]
[WhiteClock "0:01:07"]
[BlackClock "0:00:14"]
[Board "197"]

1. e4 {[%clk 0:03:00]}  e5 {[%clk 0:02:58]} 2. Nf3 {[%clk 0:03:01]}  Nc6 {[%clk 0:02:56]} 3. Bc4 {[%clk 0:03:01]}  Nf6 {[%clk 0:02:56]} 4. d3 {[%clk 0:03:01]}  Bc5 {[%clk 0:02:55]} 5. c3 {[%clk 0:03:01]}  d6 {[%clk 0:02:54]} 6. O-O {[%clk 0:03:00]}  a6 {[%clk 0:02:52]} 7. a4 {[%clk 0:03:01]}  Ba7 {[%clk 0:02:51]} 8. Re1 {[%clk 0:02:58]}  O-O {[%clk 0:02:50]} 9. h3 {[%clk 0:02:56]}  Ne7 {[%clk 0:02:41]} 10. d4 {[%clk 0:02:51]}  Ng6 {[%clk 0:02:37]} 11. Nbd2 {[%clk 0:02:33]}  Re8 {[%clk 0:02:26]} 12. Bb3 {[%clk 0:02:31]}  h6 {[%clk 0:02:25]} 13. Bc2 {[%clk 0:02:27]}  c6 {[%clk 0:02:21]} 14. Nf1 {[%clk 0:02:25]}  d5 {[%clk 0:01:57]} 15. exd5 {[%clk 0:02:03]}  Qxd5 {[%clk 0:01:33]} 16. Bxg6 {[%clk 0:01:58]}  fxg6 {[%clk 0:01:26]} 17. Rxe5 {[%clk 0:01:52]}  Rxe5 {[%clk 0:01:23]} 18. Nxe5 {[%clk 0:01:53]}  Bf5 {[%clk 0:01:13]} 19. Ne3 {[%clk 0:01:52]}  Qe6 {[%clk 0:00:59]} 20. Nxf5 {[%clk 0:01:45]}  Qxf5 {[%clk 0:00:58]} 21. Qb3+ {[%clk 0:01:41]}  Kh7 {[%clk 0:00:57]} 22. Qxb7 {[%clk 0:01:41]}  Ne4 {[%clk 0:00:46]} 23. Be3 {[%clk 0:01:39]}  Qf8 {[%clk 0:00:33]} 24. Qxc6 {[%clk 0:01:28]}  Nf6 {[%clk 0:00:27]} 25. Re1 {[%clk 0:01:22]}  Rb8 {[%clk 0:00:24]} 26. b4 {[%clk 0:01:21]}  Rb6 {[%clk 0:00:23]} 27. Qc7 {[%clk 0:01:16]}  Qa8 {[%clk 0:00:15]} 28. Qf7 {[%clk 0:01:08]}  Rb7 {[%clk 0:00:14]} 29. Qxg6+ {[%clk 0:01:08]}  Kh8 {[%clk 0:00:14]} 30. Bxh6 {[%clk 0:01:07]} 1-0


[Site "https://www.chess.com"]